bitfinex/quotes_SOLUSD_20260220
["timestamp","ask_amount","ask_price","bid_price","bid_amount"]
[1771605212450,59.43584856,84.125,84.061,4.32323236]
[1771605212451,27.97552761,84.1,84.061,4.32323236]
[1771605212637,27.97552761,84.1,84.057,41.6383664]
[1771605212638,11.89000159,84.105,84.071,4.32323236]
[1771605213151,11.89000159,84.105,84.07,11.67372105]
[1771605213152,16.08483716,84.1,84.072,4.32323236]
[1771605213455,16.08483716,84.1,84.072,16.21779892]
[1771605213656,4.41111611,84.1,84.072,16.21779892]
[1771605213858,16.08483716,84.1,84.072,4.32323236]
[1771605214436,4.41111611,84.099,84.063,11.89584002]
[1771605215158,4.41111611,84.089,84.051,11.89753839]
[1771605215450,4.41111611,84.089,84.052,4.32323236]
[1771605215655,4.41111611,84.079,84.051,11.89753839]
[1771605216553,16.50040733,84.11,84.071,4.32323236]
[1771605216751,16.08483716,84.1,84.071,4.32323236]
[1771605216958,4.41111611,84.1,84.071,4.32323236]
[1771605217151,4.41111611,84.1,84.072,16.21779892]
[1771605217454,4.19406785,84.089,84.053,4.35011866]
[1771605217654,11.67372105,84.08,84.053,4.35011866]
[1771605218360,4.19406785,84.079,84.052,11.89739684]
[1771605218564,41.61761732,84.099,84.04,11.89899385]
[1771605218565,11.67372105,84.07,84.04,11.89899385]
[1771605218746,4.19406785,84.069,84.04,16.24911251]
[1771605219339,11.67372105,84.08,84.041,4.35011866]
[1771605219743,4.19406785,84.079,84.041,4.35011866]
[1771605219958,11.67372105,84.07,84.041,4.35011866]
[1771605220453,4.19406785,84.079,84.041,4.35011866]
[1771605222742,11.67372105,84.04,84.011,4.35011866]
[1771605222940,15.8677889,84.04,84.011,4.35011866]
[1771605223246,15.8677889,84.04,84.004,11.90419503]
[1771605223247,4.19406785,84.039,84.004,11.90419503]
[1771605223448,4.19406785,84.037,84.004,11.90419503]
[1771605223634,11.67372105,84.03,84.004,11.90419503]
[1771605224936,4.19406785,84.037,84.005,4.35011866]
[1771605225142,15.8677889,84.06,84.02,11.67372105]
[1771605225345,15.8677889,84.06,84.021,4.35011866]
[1771605225560,11.89612305,84.061,84.021,4.35011866]
[1771605225774,15.8677889,84.07,84.031,4.35011866]
[1771605226061,4.19406785,84.059,84.021,4.35011866]
[1771605226373,11.66270607,84.05,84.021,4.35011866]
[1771605226862,11.66270607,84.05,84.01,11.66270607]
[1771605226863,4.19406785,84.048,84.012,4.35011866]
[1771605227041,47.56934206,84.088,84.012,4.35011866]
[1771605227042,11.89730517,84.053,84.012,4.35011866]
[1771605227248,11.89730517,84.053,84.021,4.35011866]
[1771605227964,11.89673528,84.057,84.021,4.35011866]
[1771605228761,4.19406785,84.059,84.022,41.65575681]
[1771605228961,4.19406785,84.059,84.023,4.35011866]
[1771605229159,11.89654762,84.058,84.023,4.35011866]
[1771605229544,4.19406785,84.059,84.023,4.35011866]
[1771605229747,11.89548655,84.066,84.031,4.35011866]
[1771605230561,4.19406785,84.059,84.023,4.35011866]
[1771605230974,4.19406785,84.049,84.011,41.66121102]
[1771605231451,4.19406785,84.049,84.012,4.35011866]
[1771605231652,4.19406785,84.069,84.031,4.35011866]
[1771605231968,11.66270607,84.07,84.031,4.35011866]
[1771605232167,4.19406785,84.079,84.05,11.66270607]
[1771605232355,11.89244472,84.087,84.051,4.35011866]
[1771605232668,3.69383402,84.111,84.011,196.40285197]
[1771605232669,11.89095079,84.098,84.061,4.35011866]
[1771605233181,15.85677392,84.1,84.063,4.35011866]
[1771605233554,23.75203331,84.11,84.071,4.35011866]
[1771605233755,0.2,84.11,84.081,4.35011866]
[1771605234067,0.2,84.11,84.09,11.66270607]
[1771605234270,0.2,84.11,84.091,4.35011866]
[1771605234868,0.2,84.11,84.08,16.01282473]
[1771605235078,0.2,84.11,84.082,4.35011866]
[1771605236969,4.19406785,84.109,84.081,11.89329337]
[1771605237183,4.19406785,84.108,84.072,29.73634134]
[1771605237393,4.19406785,84.099,84.071,11.89470804]
[1771605237685,4.19406785,84.099,84.062,4.35011866]
[1771605238489,4.19406785,84.099,84.061,41.63643068]
[1771605238490,4.19406785,84.089,84.061,11.89612305]
[1771605238657,11.66270607,84.08,84.061,11.89612305]
[1771605238979,4.19406785,84.079,84.052,11.89728233]
[1771605239190,16.08777985,84.079,84.043,4.35011866]
[1771605240061,4.19406785,84.078,84.043,4.35011866]
[1771605240598,4.19406785,84.069,84.033,4.35011866]
[1771605241084,4.19406785,84.069,84.036,11.89954592]
[1771605241280,11.89391853,84.077,84.041,4.35011866]
[1771605241482,4.19406785,84.079,84.041,4.35011866]
[1771605241790,15.85677392,84.1,84.061,4.35011866]
[1771605242177,4.19406785,84.098,84.061,4.35011866]
[1771605243289,4.19406785,84.099,84.062,41.63593537]
[1771605243585,4.19406785,84.099,84.063,4.35011866]
[1771605244702,4.19406785,84.099,84.037,0.14216157]
[1771605244703,4.19406785,84.089,84.042,29.74698085]
[1771605244989,4.19406785,84.089,84.001,47.61795395]
[1771605244990,4.19406785,84.069,84.033,4.35011866]
[1771605245166,4.19406785,84.089,84.042,4.35011866]
[1771605245368,4.19406785,84.087,84.051,4.35011866]
[1771605245669,11.89178293,84.092,84.06,16.01282473]
[1771605245879,11.89178293,84.092,84.051,4.27202028]
[1771605245880,4.05521178,84.089,84.051,4.27202028]
[1771605247303,4.12970691,84.079,84.052,11.89739684]
[1771605247589,4.12970691,84.079,84.042,11.89881249]
[1771605247788,4.12970691,84.059,84.03,29.75107143]
[1771605247985,4.12970691,84.059,84.03,41.4137775]
[1771605248198,4.12970691,84.059,84.025,11.90121987]
[1771605248494,4.12970691,84.059,84.026,4.2002202]
[1771605248901,7.04158256,84.087,84.019,11.90197755]
[1771605248902,4.12970691,84.049,84.019,11.90197755]
[1771605249274,4.12970691,84.059,84.021,4.2002202]
[1771605249473,11.89704794,84.055,84.021,4.2002202]
[1771605249681,4.12970691,84.029,83.997,16.1053147]
[1771605249873,11.66270607,84.02,83.997,11.9050945]
[1771605250074,4.12970691,84.029,83.997,11.9050945]
[1771605250290,11.89704794,84.055,84.001,4.2002202]
[1771605250291,11.66270607,84.04,84.001,4.2002202]
[1771605251374,11.66270607,84.04,84.0,11.66270607]
[1771605251375,11.89591717,84.063,84.03,15.86292627]
[1771605251569,11.66270607,84.07,84.031,4.2002202]
[1771605251770,11.66270607,84.08,84.041,4.2002202]
[1771605252082,4.12970691,84.078,84.041,4.2002202]
[1771605252607,11.66270607,84.09,84.051,4.2002202]
[1771605253487,11.89117199,84.096,84.053,4.2002202]
[1771605253871,11.66270607,84.09,84.053,4.2002202]
[1771605254987,4.12970691,84.089,84.053,4.2002202]
[1771605255580,11.66270607,84.08,84.044,11.89852934]
[1771605255775,11.66270607,84.08,84.045,4.2002202]
[1771605256289,4.12970691,84.079,84.045,4.2002202]
[1771605256873,4.12970691,84.079,84.019,3.69383402]
[1771605256874,4.12970691,84.059,84.015,4.2002202]
[1771605257069,11.66270607,84.03,84.001,4.2002202]
[1771605257776,11.89937885,84.038,84.003,4.2002202]
[1771605258200,4.12970691,84.039,84.003,4.2002202]
[1771605258580,11.89937885,84.038,84.003,4.2002202]
[1771605259277,4.12970691,84.037,84.003,4.2002202]
[1771605259502,11.66270607,84.03,84.003,4.2002202]
[1771605259698,4.12970691,84.037,84.004,11.90419503]
[1771605259893,11.66270607,84.12,83.991,11.90603755]
[1771605259894,4.12970691,84.029,83.991,11.90603755]
[1771605260100,4.12970691,84.029,83.992,4.2002202]
[1771605260405,11.89966204,84.036,83.991,11.90603755]
[1771605260406,4.12970691,84.019,83.991,11.90603755]
[1771605260704,4.12970691,84.019,83.982,4.2002202]
[1771605260705,4.12970691,84.019,83.983,11.90717168]
[1771605261196,4.12970691,84.019,83.984,4.2002202]
[1771605262200,4.12970691,84.009,83.97,11.66270607]
[1771605262402,4.12970691,84.009,83.919,47.66458812]
[1771605262403,11.66270607,83.99,83.964,11.90986613]
[1771605262612,4.12970691,83.999,83.964,16.11008633]
[1771605262777,15.79241298,84.01,83.965,4.2002202]
[1771605263107,11.66270607,84.0,83.965,4.2002202]
[1771605263705,4.12970691,84.009,83.97,11.66270607]
[1771605263902,4.12970691,84.009,83.964,41.68453146]
[1771605263903,11.90221143,84.018,83.981,4.2002202]
[1771605264104,4.12970691,84.017,83.981,4.2002202]
[1771605264486,11.90249476,84.016,83.99,11.66270607]
[1771605264882,4.12970691,84.017,83.99,11.66270607]
[1771605266807,4.12970691,84.017,84.0,11.66270607]
[1771605266981,4.12970691,84.017,83.995,11.90544719]
[1771605267382,16.03211905,84.017,83.99,11.66270607]
[1771605267994,4.12970691,84.016,83.99,23.56877075]
[1771605268706,16.03086299,84.026,84.0,11.66270607]
[1771605268903,4.12970691,84.023,84.0,11.66270607]
[1771605269110,4.12970691,84.023,83.99,11.66270607]
[1771605269706,4.12970691,84.009,83.956,4.2002202]
[1771605269915,4.12970691,83.999,83.951,29.77918934]
[1771605270821,4.12970691,83.999,83.96,11.66270607]
[1771605271304,11.66270607,84.0,83.961,11.91029168]
[1771605271305,4.12970691,83.997,83.961,11.91029168]
[1771605271504,4.12970691,83.997,83.96,11.66270607]
[1771605271822,4.12970691,83.989,83.96,11.66270607]
[1771605272690,4.12970691,83.989,83.951,4.2002202]
[1771605273298,4.12970691,83.989,83.96,11.66270607]
[1771605273588,4.12970691,83.989,83.97,11.66270607]
[1771605273790,4.12970691,83.989,83.961,4.2002202]
[1771605273791,11.90646282,83.988,83.961,4.2002202]
[1771605274199,4.12970691,83.987,83.96,11.66270607]
[1771605275312,4.12970691,83.987,83.961,11.91029168]
[1771605276095,7.04158256,84.008,83.98,11.66270607]
[1771605276623,7.04158256,84.008,83.99,11.66270607]
[1771605277404,4.22341263,84.02,84.0,11.66270607]
[1771605277604,4.22341263,84.02,83.992,4.4090578]
[1771605278202,4.22341263,84.02,83.991,11.90603755]
[1771605278605,4.22341263,84.02,83.99,11.66270607]
[1771605279006,4.22341263,84.02,83.98,11.66270607]
[1771605279007,4.22341263,84.019,83.98,11.66270607]
[1771605279211,4.22341263,83.999,83.964,11.90986613]
[1771605279517,4.22341263,83.997,83.964,11.90986613]
[1771605280017,4.22341263,83.997,83.964,16.31892393]
[1771605280204,4.22341263,83.997,83.964,4.4090578]
[1771605280514,4.22341263,83.997,83.961,4.4090578]
[1771605280725,4.22341263,83.997,83.96,11.66270607]
[1771605281320,47.60564959,84.024,83.931,4.4090578]
[1771605281321,4.22341263,83.979,83.931,4.4090578]
[1771605281503,4.22341263,83.987,83.95,4.4090578]
[1771605281699,4.22341263,83.987,83.95,16.07176387]
[1771605281900,4.22341263,83.979,83.94,11.66270607]
[1771605282420,4.22341263,83.969,83.931,11.91454885]
[1771605282624,11.66270607,83.96,83.93,0.1]
[1771605282830,4.22341263,83.959,83.93,0.1]
[1771605283030,4.22341263,83.949,83.909,11.91757493]
[1771605283201,4.22341263,83.939,83.909,11.91764054]
[1771605283399,4.22341263,83.937,83.899,11.91901423]
[1771605283618,4.22341263,83.929,83.893,11.91986416]
[1771605284209,4.22341263,83.929,83.886,4.4090578]
[1771605284210,4.22341263,83.919,83.886,4.4090578]
[1771605284520,4.22341263,83.919,83.883,11.92134494]
[1771605285299,4.22341263,83.929,83.891,4.4090578]
[1771605285622,41.69744334,83.938,83.901,4.4090578]
[1771605285623,4.22341263,83.938,83.901,4.4090578]
[1771605286521,4.22341263,83.938,83.91,11.6999126]
[1771605286729,11.91280715,83.944,83.92,16.1089704]
[1771605286907,11.91057539,83.959,83.93,11.6999126]
[1771605287310,16.13398802,83.959,83.93,11.6999126]
[1771605287519,4.22341263,83.959,83.94,11.6999126]
[1771605287824,4.22341263,83.959,83.92,11.6999126]
[1771605288021,4.22341263,83.959,83.93,11.6999126]
[1771605288207,4.22341263,83.959,83.93,16.1089704]
[1771605288404,11.90997656,83.964,83.931,4.4090578]
[1771605288603,5.36086188,84.024,83.911,41.71086031]
[1771605288604,16.13115146,83.979,83.941,4.4090578]
[1771605289008,16.13115146,83.979,83.911,89.38041495]
[1771605289009,4.22341263,83.979,83.95,16.1089704]
[1771605289805,4.22341263,83.979,83.951,11.9117104]
[1771605290024,4.22341263,83.979,83.951,16.3207682]
[1771605290226,4.22341263,83.989,83.96,11.6999126]
[1771605290427,4.22341263,83.989,83.952,4.4090578]
[1771605290815,4.22341263,84.04,83.98,11.6999126]
[1771605291026,4.22341263,84.029,83.981,4.4090578]
[1771605291228,4.22341263,84.029,83.99,11.6999126]
[1771605291423,4.22341263,84.029,83.981,4.4090578]
[1771605291424,4.22341263,84.029,84.0,11.6999126]
[1771605292022,4.22341263,84.027,84.0,11.6999126]
[1771605292224,4.22341263,84.038,84.0,16.1089704]
[1771605292431,4.22341263,84.038,84.01,11.6999126]
[1771605292619,4.22341263,84.038,84.001,11.90462018]
[1771605292818,4.22341263,84.038,84.0,16.1089704]
[1771605293018,4.22341263,84.038,84.01,11.6999126]
[1771605293925,11.89952044,84.037,84.01,11.6999126]
[1771605294234,16.12293307,84.037,84.01,11.6999126]
[1771605294431,16.12293307,84.037,84.011,11.90320315]
[1771605294432,11.89952044,84.037,84.011,11.90320315]
[1771605295011,4.22341263,84.036,83.989,4.4090578]
[1771605295240,11.89952044,84.037,83.99,11.6999126]
[1771605295241,4.22341263,84.029,83.99,11.6999126]
[1771605296023,4.22341263,84.027,84.0,11.6999126]
[1771605297029,4.22341263,84.027,83.991,4.4090578]
[1771605297233,4.22341263,84.027,84.0,11.6999126]
[1771605298132,4.22341263,84.025,84.0,11.6999126]
[1771605298723,4.22341263,84.025,84.001,11.90462018]
[1771605298922,11.90046818,84.031,84.001,16.31367798]
[1771605299319,29.74880112,84.037,84.002,4.4090578]
[1771605299514,29.74880112,84.037,84.001,11.90462018]
[1771605299515,165.7,84.302,84.021,4.4090578]
[1771605299719,11.6999126,84.07,84.032,4.4090578]
[1771605300033,11.6999126,84.07,84.03,11.6999126]
[1771605300338,29.72686952,84.099,84.051,4.4090578]
[1771605300639,29.72686952,84.099,84.022,4.4090578]
[1771605300640,11.6999126,84.06,84.022,4.4090578]
[1771605301238,11.6999126,84.06,84.02,11.6999126]
[1771605301437,11.6999126,84.06,84.021,11.90178645]
[1771605301635,4.11598996,84.059,84.021,11.90178645]
[1771605301836,4.11598996,84.059,84.02,11.6999126]
[1771605302022,4.11598996,84.059,84.02,23.60180128]
[1771605302342,4.11598996,84.057,84.011,4.4090578]
[1771605302534,4.11598996,84.049,84.01,11.6999126]
[1771605302848,4.11598996,84.049,84.011,11.90320315]
[1771605303356,4.11598996,84.049,84.012,4.4090578]
[1771605304538,41.64287073,84.048,84.012,4.4090578]
[1771605304737,4.11598996,84.047,84.012,4.4090578]
[1771605305043,4.11598996,84.047,84.01,11.6999126]
[1771605305235,41.64287073,84.048,83.991,4.4090578]
[1771605305236,4.11598996,84.039,83.991,4.4090578]
[1771605305437,4.11598996,84.039,84.0,11.6999126]
[1771605305748,4.11598996,84.039,84.001,4.4090578]
[1771605305936,16.01395302,84.048,84.02,11.6999126]
[1771605306123,11.89796306,84.048,84.02,11.6999126]
[1771605306324,11.89668915,84.057,84.021,4.45041942]
[1771605306738,11.89668915,84.057,84.023,4.45041942]
[1771605307042,4.11598996,84.049,84.02,11.6999126]
[1771605307338,47.5721851,84.083,84.011,11.90320315]
[1771605307339,11.8954155,84.066,84.031,4.13181251]
[1771605307524,4.05532055,84.059,84.02,11.6999126]
[1771605307726,4.05532055,84.059,84.03,11.6999126]
[1771605307927,4.05532055,84.059,84.021,4.13181251]
[1771605308344,11.8954155,84.066,84.01,11.6999126]
[1771605308345,4.05532055,84.049,84.01,11.6999126]
[1771605308546,4.05532055,84.049,84.012,4.13181251]
[1771605308840,11.89640609,84.059,84.021,4.13181251]
[1771605309039,11.89640609,84.059,84.03,11.6999126]
[1771605309424,11.89513251,84.068,84.03,11.6999126]
[1771605309626,11.89513251,84.068,84.039,4.13181251]
[1771605309830,15.95045306,84.068,84.031,4.13181251]
[1771605310033,4.05532055,84.067,84.031,4.13181251]
[1771605310344,4.05532055,84.067,84.013,41.66021924]
[1771605310345,11.6999126,84.06,84.021,4.13181251]
[1771605310547,4.05532055,84.059,84.014,4.13181251]
[1771605310838,4.05532055,84.057,84.016,4.13181251]
[1771605311233,4.05532055,84.057,84.02,11.6999126]
[1771605311427,4.05532055,84.049,84.01,11.6999126]
[1771605311630,4.05532055,84.093,84.04,11.6999126]
[1771605311830,4.05532055,84.104,84.061,4.13181251]
[1771605312030,47.5471534,84.128,84.06,11.6999126]
[1771605312031,0.2,84.13,84.091,4.13181251]
[1771605312236,11.88650762,84.129,84.1,11.6999126]
[1771605312643,11.88650762,84.129,84.091,4.13181251]
[1771605312829,4.05532055,84.109,84.07,11.6999126]
[1771605315040,11.88947543,84.108,84.071,16.02652055]
[1771605315446,4.05532055,84.099,84.061,11.89612305]
[1771605315750,4.05532055,84.099,84.062,4.13181251]
[1771605316140,11.88947543,84.108,84.071,4.13181251]
[1771605316535,11.88947543,84.108,84.061,41.63643068]
[1771605316536,11.6999126,84.1,84.061,11.89612305]
[1771605316747,4.05532055,84.089,84.046,16.0300587]
[1771605317044,11.8923033,84.088,84.051,11.89753839]
[1771605317441,4.05532055,84.087,84.05,27.7292961]
[1771605318036,4.05532055,84.087,84.051,4.13181251]
[1771605318867,11.6999126,84.09,84.051,4.13181251]
[1771605319159,11.89103059,84.097,84.062,4.13181251]
[1771605319334,41.61860707,84.097,84.062,4.13181251]
[1771605319529,41.61860707,84.097,84.062,16.02779404]
[1771605319930,41.61860707,84.097,84.062,4.13181251]
[1771605320131,4.05532055,84.096,84.062,4.13181251]
[1771605320374,11.88990857,84.105,84.071,4.13181251]
[1771605320735,11.88900354,84.112,84.081,4.13181251]
[1771605321153,11.88820333,84.117,84.082,11.89315192]
[1771605321335,11.88820333,84.117,84.081,4.13181251]
[1771605321336,4.05532055,84.109,84.071,11.89470601]
[1771605321960,4.05532055,84.109,84.072,4.13181251]
[1771605322141,7.04158256,84.108,84.072,4.13181251]
[1771605323348,4.05532055,84.106,84.072,4.13181251]
[1771605323541,11.6999126,84.09,84.054,4.13181251]
[1771605323735,4.05532055,84.099,84.054,4.13181251]
[1771605324261,11.6999126,84.09,84.054,4.13181251]
[1771605324460,4.05532055,84.079,84.048,11.89788418]
[1771605325154,3.69383402,84.104,84.051,4.13181251]
[1771605325352,11.6999126,84.07,84.04,11.89909566]
[1771605325876,11.6999126,84.05,84.019,4.13181251]
[1771605326162,4.05532055,84.049,84.015,4.13181251]
[1771605327351,11.89796306,84.048,84.016,11.90249476]
[1771605327548,4.05532055,84.059,84.017,4.13181251]
[1771605327753,11.6999126,84.06,84.021,4.13181251]
[1771605328060,11.89513572,84.068,84.021,4.13181251]
[1771605328458,11.6999126,84.06,84.021,4.13181251]
[1771605329442,11.89640609,84.059,84.023,4.13181251]
[1771605330261,11.6999126,84.06,84.023,4.13181251]
[1771605330645,4.05532055,84.071,84.022,41.65575681]
[1771605330646,11.6999126,84.07,84.031,4.13181251]
[1771605330847,11.6999126,84.08,84.041,4.13181251]
[1771605331048,7.04158256,84.079,84.041,4.13181251]
[1771605331350,11.6999126,84.08,84.041,4.13181251]
[1771605331535,11.89357627,84.079,84.043,4.13181251]
[1771605331949,11.6999126,84.08,84.043,4.13181251]
[1771605332149,3.69383402,84.104,84.042,41.64584373]
[1771605332150,11.6999126,84.1,84.061,4.13181251]
[1771605332370,15.94309991,84.12,84.071,4.13181251]
[1771605332557,4.05532055,84.142,84.091,4.13181251]
[1771605332737,11.8999126,84.14,84.101,4.13181251]
[1771605332936,11.8999126,84.14,84.06,17.06077448]
[1771605332937,4.05532055,84.128,84.091,4.13181251]
[1771605333569,11.6999126,84.12,84.091,4.13181251]
[1771605333762,11.6999126,84.12,84.091,16.02368202]
[1771605334067,4.05532055,84.128,84.092,4.13181251]
[1771605334235,4.05532055,84.127,84.092,4.13181251]
[1771605334441,11.6999126,84.11,84.072,4.13181251]
[1771605334645,11.6999126,84.11,84.074,16.02606022]
[1771605334958,4.05532055,84.119,84.081,4.13181251]
[1771605335747,0.2,84.13,84.071,4.13181251]
[1771605335748,11.6999126,84.1,84.071,4.13181251]
[1771605336042,11.6999126,84.1,84.071,16.02652055]
[1771605336445,11.6999126,84.1,84.065,11.89551402]
[1771605336446,4.05532055,84.099,84.065,11.89551402]
[1771605337043,11.6999126,84.1,84.065,11.89551402]
[1771605337276,11.88650762,84.129,84.081,4.08866564]
[1771605337646,0.2,84.13,84.101,4.08866564]
[1771605338073,12.08645162,84.13,84.101,4.08866564]
[1771605338964,0.2,84.13,84.101,4.08866564]
[1771605339165,0.2,84.13,84.1,11.6999126]
[1771605339470,4.07030796,84.128,84.09,11.6999126]
[1771605339855,4.07030796,84.128,84.1,11.6999126]
[1771605340059,4.07030796,84.128,84.09,11.6999126]
[1771605340263,11.88650762,84.129,84.09,11.6999126]
[1771605340462,0.2,84.13,84.1,11.6999126]
[1771605340772,0.2,84.13,84.071,41.63147815]
[1771605340773,15.95681558,84.129,84.09,11.6999126]
[1771605341153,4.07030796,84.128,84.09,15.78857824]
[1771605341353,4.07030796,84.128,84.091,4.08866564]
[1771605342858,4.07030796,84.126,84.091,4.08866564]
[1771605343057,4.07030796,84.126,84.091,15.98044692]
[1771605343258,4.07030796,84.126,84.092,4.08866564]
[1771605343478,11.88679021,84.127,84.092,4.08866564]
[1771605343673,11.88679021,84.127,84.101,4.08866564]
[1771605343972,11.88679021,84.127,84.081,4.08866564]
[1771605343973,4.07030796,84.109,84.081,4.08866564]
[1771605344152,4.07030796,84.109,84.078,11.89359695]
[1771605344773,4.07030796,84.099,84.061,4.08866564]
[1771605344984,4.07030796,84.097,84.062,4.08866564]
[1771605345280,4.07030796,84.107,84.071,4.08866564]
[1771605345454,4.07030796,84.105,84.071,4.08866564]
[1771605345771,11.6999126,84.1,84.071,4.08866564]
[1771605346153,4.07030796,84.105,84.071,4.08866564]
[1771605347355,4.07030796,84.139,84.091,4.08866564]
[1771605347556,0.2,84.15,84.121,4.08866564]
[1771605347756,11.88423858,84.146,84.121,4.08866564]
[1771605348159,0.2,84.15,84.121,4.08866564]
[1771605348160,11.83822639,84.15,84.121,4.08866564]
[1771605348464,0.2,84.15,84.12,11.63822639]
[1771605348660,0.2,84.15,84.121,4.08866564]
[1771605349180,4.07030796,84.177,84.131,4.08866564]
[1771605349373,29.70179398,84.17,84.131,4.08866564]
[1771605349578,4.07030796,84.169,84.122,4.08866564]
[1771605349872,4.07030796,84.149,84.111,4.08866564]
[1771605350054,4.07030796,84.149,84.113,11.88866665]
[1771605351571,4.07030796,84.147,84.113,11.88866665]
[1771605351758,4.07030796,84.145,84.111,4.08866564]
[1771605352164,4.21246953,84.144,84.111,4.08866564]
[1771605352392,4.07030796,84.144,84.112,4.08866564]
[1771605353275,4.07030796,84.139,84.103,11.89012719]
[1771605353578,15.95554411,84.138,84.104,4.08866564]
[1771605354692,15.95554411,84.138,84.087,4.08866564]
[1771605354693,4.07030796,84.129,84.087,4.08866564]
[1771605354863,4.07030796,84.129,84.091,4.08866564]
[1771605355062,11.88523615,84.138,84.09,11.63822639]
[1771605355063,4.07030796,84.137,84.09,11.63822639]
[1771605355262,11.63822639,84.12,84.091,4.08866564]
[1771605355583,11.63822639,84.11,84.081,4.08866564]
[1771605355963,4.07030796,84.118,84.081,4.08866564]
[1771605356375,11.63822639,84.11,84.081,4.08866564]
[1771605356582,4.07030796,84.118,84.082,4.08866564]
[1771605357363,157.6800325,85.097,84.1,11.63822639]
[1771605357364,11.63822639,84.14,84.1,11.63822639]
[1771605357563,11.88410619,84.146,84.112,4.08866564]
[1771605358290,11.88241165,84.158,84.121,4.08866564]
[1771605359468,11.88241165,84.158,84.122,11.88749673]
[1771605359669,11.88241165,84.158,84.123,4.08866564]
[1771605360763,11.88241165,84.158,84.085,47.57088906]
[1771605360764,4.07030796,84.149,84.114,11.88855108]
[1771605360964,41.58844078,84.158,84.115,4.08866564]
[1771605361181,4.07030796,84.157,84.121,4.08866564]
[1771605361694,4.07030796,84.198,84.151,4.08866564]
[1771605361866,4.07030796,84.198,84.122,89.15622547]
[1771605361867,0.2,84.2,84.171,4.08866564]
[1771605362063,11.87687827,84.198,84.171,4.08866564]
[1771605362296,0.2,84.2,84.171,4.08866564]
[1771605362469,0.2,84.2,84.16,11.63822639]
[1771605362470,4.07030796,84.199,84.161,4.08866564]
[1771605362797,29.69195261,84.198,84.161,4.08866564]
[1771605362999,4.07030796,84.188,84.15,4.08866564]
[1771605363169,4.07030796,84.188,84.151,4.08866564]
[1771605363569,4.07030796,84.179,84.141,4.08866564]
[1771605364301,0.2,84.19,84.161,4.08866564]
[1771605364597,0.2,84.19,84.171,4.08866564]
[1771605364768,11.87803632,84.189,84.158,4.08866564]
[1771605365389,15.94834428,84.189,84.158,4.08866564]
[1771605365908,4.07030796,84.188,84.158,4.08866564]
[1771605366088,4.07030796,84.188,84.158,15.9709771]
[1771605366294,0.2,84.2,84.18,11.63822639]
[1771605366510,0.2,84.2,84.181,4.11888625]
[1771605367072,0.2,84.2,84.158,41.58834059]
[1771605367073,4.46034618,84.222,84.191,4.27271231]
[1771605367478,11.87490324,84.212,84.191,4.27271231]
[1771605367678,11.87521523,84.209,84.181,4.27271231]
[1771605368098,4.19088083,84.213,84.182,11.87902401]
[1771605368609,4.19088083,84.213,84.183,4.27271231]
[1771605368779,4.19088083,84.224,84.19,11.63822639]
[1771605369099,4.19088083,84.224,84.191,4.27271231]
[1771605369100,11.87360131,84.221,84.191,4.27271231]
[1771605369296,4.39088083,84.21,84.18,11.63822639]
[1771605369472,11.87521523,84.209,84.18,23.51753263]
[1771605369671,4.19088083,84.208,84.172,11.8804014]
[1771605369895,11.87521523,84.209,84.16,11.63822639]
[1771605369896,4.19088083,84.199,84.16,11.63822639]
[1771605370192,11.87676666,84.198,84.161,4.27271231]
[1771605371202,4.19088083,84.197,84.161,4.27271231]
[1771605371404,11.87704879,84.196,84.162,4.27271231]
[1771605371590,4.19088083,84.197,84.162,4.27271231]
[1771605371789,11.87704879,84.196,84.162,4.27271231]
[1771605372402,11.87704879,84.196,84.161,41.58686067]
[1771605372403,4.39088083,84.21,84.18,11.63822639]
[1771605372711,0.2,84.21,84.191,4.27271231]
[1771605373091,11.87521523,84.209,84.182,4.27271231]
[1771605373486,0.2,84.21,84.19,11.63822639]
[1771605373681,12.07518747,84.21,84.181,4.27271231]
[1771605374087,12.07518747,84.21,84.18,11.63822639]
[1771605374088,15.82910722,84.2,84.17,4.27271231]
[1771605374609,7.04158256,84.209,84.181,4.27271231]
[1771605375103,7.04158256,84.209,84.151,4.27271231]
[1771605375104,4.19088083,84.189,84.151,4.27271231]
[1771605375276,4.19088083,84.189,84.151,16.15611238]
[1771605375485,4.19088083,84.187,84.151,16.15611238]
[1771605375799,11.63822639,84.17,84.142,11.88467115]
[1771605376007,4.19088083,84.171,84.142,11.88467115]
[1771605376200,4.19088083,84.169,84.131,4.27271231]
[1771605376508,4.19088083,84.159,84.12,23.52600575]
[1771605376701,4.19088083,84.149,84.119,4.27271231]
[1771605376901,4.19088083,84.149,84.111,4.27271231]
[1771605377407,4.19088083,84.147,84.112,11.88891002]
[1771605377777,11.88382373,84.148,84.101,4.27271231]
[1771605377778,4.19088083,84.139,84.101,4.27271231]
[1771605377986,4.19088083,84.129,84.1,11.63822639]
[1771605378305,4.19088083,84.139,84.101,4.27271231]
[1771605379086,11.63822639,84.13,84.101,4.27271231]
[1771605379617,4.19088083,84.119,84.085,11.89261697]
[1771605379909,4.19088083,84.119,84.086,4.27271231]
[1771605380408,45.79365751,84.129,84.091,4.27271231]
[1771605380595,11.88536552,84.138,84.101,4.27271231]
[1771605381304,4.19088083,84.152,84.12,11.63822639]